[Event "3rd President Cup-A 2024"]
[Site "Tashkent"]
[Date "2024.11.27"]
[Round "7.7"]
[White "Pranesh M"]
[Black "Khubukshanov, Erdem"]
[Result "1/2-1/2"]
[ECO "B23"]
[WhiteElo "2580"]
[BlackElo "2443"]
[Annotator "TA"]
[PlyCount "130"]
[EventDate "2024.11.22"]
[EventType "swiss"]
[EventCountry "UZB"]
[SourceTitle "playchess.com"]
[Source "ChessBase"]
[SourceQuality "1"]
[TimeControl "5400+30"]

{[%evp 9,130,-4,0,-18,9,18,28,4,31,19,17,-8,0,0,0,-23,-18,-24,40,0,0,3,0,0,186,171,222,92,156,143,179,162,212,191,242,221,322,255,277,229,235,228,324,190,195,121,113,0,201,133,139,145,129,110,111,115,231,73,83,103,80,0,0,0,0,8,2,0,137,80,113,38,138,115,189,135,119,44,52,0,0,-19,0,0,0,0,8,8,8,8,8,8,8,8,8,8,8,8,8,8,8,8,8,8,8,8,8,8,8,8,8,0,8,0,8,8,8,8,8,8,8,8,8]} 1. e4 {[%emt 0:00:04]} c5 {[%emt 0:00:21]} 2. Nc3 {[%emt 0:00:12]} d6 {[%emt 0:00:29]} 3. f4 {[%emt 0:00:12]} g6 {[%emt 0:00:43]} 4. Nf3 {[%emt 0:00:09]} Bg7 {[%emt 0:00:26]} 5. Bb5+ {[%emt 0:00:08]} Bd7 {[%emt 0:00:57]} 6. Bc4 {[%emt 0:00:09]} e6 {[%emt 0:05:41]} 7. d4 {[%emt 0:01:22]} cxd4 {[%emt 0:03:15]} 8. Nxd4 {[%emt 0:00:10] White has an edge.} Ne7 {[%emt 0:02:12]} 9. Be3 {[%emt 0:06:26]} O-O {[%emt 0:11:24][%cal Od6d5]} 10. Qf3 {[%emt 0:03:47]} Nbc6 {[%emt 0:13:38]} 11. O-O-O {[%emt 0:01:23]} Na5 {[%emt 0:03:22]} 12. Bb3 {[%emt 0:02:23]} Rc8 {[%emt 0:06:59]} 13. Kb1 {[%emt 0:04:02]} Nc4 {[%emt 0:03:36]} ({Better is} 13... Nxb3 $11 14. axb3 Qa5) 14. Bxc4 {[%emt 0:04:30]} Rxc4 {[%emt 0:00:08]} 15. g4 {[%emt 0:01:58]} Nc6 {[%emt 0:14:00]} 16. Nde2 {[%emt 0:11:50]} Nb4 $2 {[%emt 0:12:47]} (16... Qa5 $11) 17. a3 $18 {[%emt 0:05:36]} (17. Bxa7 b6 18. Qe3 Qa8 19. Bxb6 Bc6 $19) (17. Rxd6 Bxc3 (17... Nxc2 18. Rhd1 $18) 18. Nxc3 Rxc3 19. bxc3 Qa5 20. cxb4 (20. Rxd7 $2 Qxa2+ 21. Kc1 Qxc2#) 20... Qxb4+ 21. Ka1 Qxd6 $11) 17... a5 {[%emt 0:06:03]} (17... Nxc2 {is a better defense.} 18. Kxc2 b5) 18. f5 {[%emt 0:03:01]} (18. axb4 axb4 19. Na2 Qa5 $11) (18. Rxd6 $1 $18 Qe7 (18... Nxc2 19. Bb6 $18) 19. Rhd1) 18... Nc6 {[%emt 0:07:01]} (18... Nxc2 $142 19. Kxc2 b5) 19. Rxd6 $16 {[%emt 0:02:38] Bf4 is the strong threat. White is more active.} Qe7 {[%emt 0:01:03]} 20. Rhd1 {[%emt 0:00:51]} Bc8 {[%emt 0:01:07]} 21. Qf2 {[%emt 0:06:11]} Ne5 {[%emt 0:01:52]} (21... exf5 $142 22. gxf5 Rxc3 23. Nxc3 Bxc3) 22. h3 $18 {[%emt 0:00:31] Black is weak on the dark squares} Re8 {[%emt 0:01:45]} (22... b5 {was necessary.} 23. b3 (23. Nxb5 Bd7 $18) 23... b4) 23. Bb6 {[%emt 0:01:30]} Nc6 {[%emt 0:01:28] Against Bd8} 24. fxg6 {[%emt 0:02:02]} fxg6 {[%emt 0:00:25]} 25. Qe3 {[%emt 0:01:13]} a4 {[%emt 0:00:43]} (25... Ne5 $142 26. Bd8 (26. Bxa5 Nf7 $18) 26... Qf7 27. Bxa5 Qe7) 26. g5 {[%emt 0:02:31]} (26. b3 $142 Rxc3 27. Nxc3 axb3 28. cxb3) 26... Ne5 {[%emt 0:00:17]} 27. Bc5 {[%emt 0:05:17]} (27. h4 $18) 27... Qc7 $16 {[%emt 0:01:00]} 28. Bb6 {[%emt 0:00:45]} (28. Ba7 $16) 28... Qe7 $18 {[%emt 0:00:17]} 29. Rd8 {[%emt 0:01:37] Hoping for Rxe8+.} Bd7 {[%emt 0:00:31]} 30. Rxe8+ {[%emt 0:00:08]} Bxe8 {[%emt 0:00:50]} 31. Bd4 {[%emt 0:04:08]} (31. Rd8 Rc6 32. Rb8 (32. Nxa4 $2 Nc4 $19) 32... Nc4 $14) 31... b5 {[%emt 0:00:19]} 32. Qg3 {[%emt 0:01:25]} Qc7 {[%emt 0:00:27]} (32... Qd6 $16 {might work better.}) 33. Nf4 $2 {[%emt 0:02:38]} (33. b3 $1 $18 {[%cal Rb3c4] is the precise move to win.} Rc6 34. Nxb5 (34. bxa4 bxa4 35. Ka2 Rc4 $11)) 33... Rxd4 $16 {[%emt 0:01:19]} 34. Rxd4 {[%emt 0:00:29]} Nc4 {[%emt 0:00:10]} 35. Rd3 {[%emt 0:04:00]} (35. Rxc4 $16 bxc4 36. Qe3 Bxc3 37. bxc3 Qb8+ 38. Kc1) 35... Be5 $11 {[%emt 0:00:02]} 36. Nce2 {[%emt 0:00:13]} Bxb2 {[%emt 0:00:33] Threatens to win with ...Be5. A strong pair of Bishops.} 37. Nxe6 {[%emt 0:02:13]} Qe7 {[%emt 0:00:34][%csl LRa3,LRe6]} 38. Nc7 {[%emt 0:01:42]} Be5 {[%emt 0:01:10]} (38... Nxa3+ $11 39. Rxa3 (39. Kxb2 Qb4+ $15) 39... Bxa3) 39. Nd5 $16 {[%emt 0:00:14]} Qc5 {[%emt 0:00:20]} 40. Qf3 {[%emt 0:02:49]} (40. Qg4 $1 $16 {Qe6+ would now be deadly.} Kf8 (40... Nxa3+ $2 41. Rxa3 Qxa3 42. Qe6+ Bf7 43. Qxe5 $18) 41. Kc1 Bb2+ 42. Kb1) 40... Kg7 {[%emt 0:00:25]} (40... Bc6 $1 $14) 41. h4 {[%emt 0:01:39]} Bc6 {[%emt 0:00:22]} (41... Bf7 $16) 42. Kc1 {[%emt 0:04:02]} (42. Ne3 $18) 42... Nb2 {[%emt 0:01:29] [#]} 43. Rc3 {[%emt 0:02:33]} Nc4 $14 {[%emt 0:00:00][%cal Oc6d5] [#]} 44. Ndf4 {[%emt 0:00:17]} Qe7 $1 $11 {[%emt 0:00:00] The position is equal.} 45. h5 {[%emt 0:02:18]} Bxc3 {[%emt 0:00:00]} 46. Qxc3+ {[%emt 0:00:04]} Kg8 {[%emt 0:00:15]} 47. hxg6 {[%emt 0:00:21]} hxg6 {[%emt 0:00:16] [#]} 48. Qh8+ $1 {[%emt 0:00:51]} Kxh8 {[%emt 0:00:24]} 49. Nxg6+ {[%emt 0:00:01]} Kg7 {[%emt 0:00:28]} 50. Nxe7 {[%emt 0:00:02]} Bxe4 {[%emt 0:00:15]} 51. Nc3 {[%emt 0:00:02][%csl LRb5,LRe4]} Bxc2 {[%emt 0:00:21]} 52. Kxc2 {[%emt 0:00:18]} Nxa3+ {[%emt 0:00:04][%mdl 4096] Endgame.} 53. Kc1 {[%emt 0:01:11]} Nc4 {[%emt 0:01:06]} 54. Ncd5 {[%emt 0:01:04]} b4 {[%emt 0:01:03]} 55. Nxb4 {[%emt 0:00:50]} Ne5 {[%emt 0:00:38]} 56. Nbd5 {[%emt 0:01:19] aiming for Nf4.} Nf3 {[%emt 0:00:22]} 57. g6 {[%emt 0:00:13] And now Nf4 would win.} Ne5 {[%emt 0:00:27]} 58. Nf4 {[%emt 0:00:07]} Kf6 $1 {[%emt 0:00:23]} 59. Ned5+ {[%emt 0:00:28]} ({Don't play} 59. Nfd5+ Kg7 $14) 59... Kg7 {[%emt 0:00:07]} 60. Ne7 {[%emt 0:00:11] Threatening mate with Nh5+.} Kf6 $1 {[%emt 0:00:06]} 61. Nfd5+ {[%emt 0:00:17]} Kg7 {[%emt 0:00:17]} 62. Kb2 {[%emt 0:00:04]} Nxg6 {[%emt 0:00:30]} 63. Nc6 {[%emt 0:00:02]} ({Not} 63. Nf5+ Kf7 $16) 63... Kf7 {[%emt 0:00:19]} 64. Ka3 {[%emt 0:00:01]} Ke6 {[%emt 0:00:18]} 65. Nc3 {[%emt 0:00:04]} Kd6 {[%emt 0:00:18] Weighted Error Value: White=0.29 (precise) /Black=0.25 (precise) .  Loses game:     	---       	Black=1      Mistake:       	White=10    	Black=10     Inaccurate:     	White=2     	Black=2      OK:         	White=18    	Black=25     Best:        	White=5     	Black=7      Strong:       	---       	Black=3      Brilliant:      	White=1     	---} 1/2-1/2

[Event "3rd President Cup-A 2024"]
[Site "Tashkent"]
[Date "2024.11.27"]
[Round "7.8"]
[White "Pingin, Artem"]
[Black "Bernadskiy, Vitaliy"]
[Result "1/2-1/2"]
[ECO "E11"]
[WhiteElo "2447"]
[BlackElo "2543"]
[Annotator "TA"]
[PlyCount "35"]
[EventDate "2024.11.22"]
[EventType "swiss"]
[EventCountry "UZB"]
[SourceTitle "playchess.com"]
[Source "ChessBase"]
[SourceQuality "1"]
[TimeControl "5400+30"]

{[%evp 22,35,38,29,27,35,29,27,24,0,0,0,50,0,5,0]} 1. d4 {[%emt 0:00:03]} Nf6 {[%emt 0:02:22]} 2. c4 {[%emt 0:00:06]} e6 {[%emt 0:00:28]} 3. Nf3 {[%emt 0:00:05]} b6 {[%emt 0:00:43]} 4. g3 {[%emt 0:02:39]} Bb4+ {[%emt 0:02:52]} 5. Bd2 {[%emt 0:00:07]} Bxd2+ {[%emt 0:00:12]} 6. Qxd2 {[%emt 0:04:08]} c6 {[%emt 0:00:29]} 7. Qc2 {[%emt 0:07:21]} d5 {[%emt 0:00:37]} 8. Nbd2 {[%emt 0:00:06][%cal Bb1d2,Bd2e4,Be4d6,Bd6b5][%mdl 32]} Bb7 {[%emt 0:01:50]} 9. Bg2 {[%emt 0:00:56]} O-O {[%emt 0:04:30]} 10. O-O {[%emt 0:01:55]} Nbd7 {[%emt 0:00:24]} 11. e4 {[%emt 0:11:06]} dxe4 12. Nxe4 {[%emt 0:00:50]} c5 {[%emt 0:04:44]} 13. Nd6 {[%emt 0:26:39]} Bc6 {[%emt 0:03:35]} 14. Rad1 {[%emt 0:00:05][%cal Od4d5]} Qc7 {[%emt 0:01:34]} 15. Nb5 {[%emt 0:04:23]} (15. d5 $5 exd5 16. cxd5 Nxd5 17. Ng5 $16) 15... Qb7 {[%emt 0:01:39]} 16. Nd6 {[%emt 0:00:05]} Qc7 {[%emt 0:00:03]} 17. Nb5 {[%emt 0:08:04]} (17. d5 $5 exd5 18. cxd5 Nxd5 19. Ng5 $16) 17... Qb7 {[%emt 0:00:04]} 18. Nd6 {[%emt 0:00:03] An uneventful encounter.   Weighted Error Value: White=0.14 (very precise) /Black=0.00 (flawless) .  Inaccurate:     	White=1     	---        OK:         	White=3     	Black=4} 1/2-1/2

[Event "3rd President Cup-A 2024"]
[Site "Tashkent"]
[Date "2024.11.27"]
[Round "7.9"]
[White "Raja Rithvik R"]
[Black "Mamedov, Edgar"]
[Result "1/2-1/2"]
[ECO "D30"]
[WhiteElo "2528"]
[BlackElo "2448"]
[Annotator "TA"]
[PlyCount "49"]
[EventDate "2024.11.22"]
[EventType "swiss"]
[EventCountry "UZB"]
[SourceTitle "playchess.com"]
[Source "ChessBase"]
[SourceQuality "1"]
[TimeControl "5400+30"]

{[%evp 12,49,32,20,21,19,22,0,0,9,0,0,0,0,22,15,29,12,31,26,27,20,54,54,33,33,79,68,77,40,52,49,61,29,21,16,26,20,33,10]} 1. d4 {[%emt 0:00:59]} d5 {[%emt 0:00:14]} 2. c4 {[%emt 0:00:08]} c6 {[%emt 0:00:18]} 3. Nf3 {[%emt 0:00:13]} Nf6 {[%emt 0:00:17]} 4. e3 {[%emt 0:00:11]} e6 {[%emt 0:00:12]} 5. Nbd2 {[%emt 0:00:17]} Nbd7 {[%emt 0:01:26]} 6. b3 {[%emt 0:00:25]} Bd6 {[%emt 0:00:48]} 7. Bb2 {[%emt 0:00:15]} b6 {[%emt 0:00:24]} 8. Bd3 {[%emt 0:00:41]} Bb7 {[%emt 0:00:06]} 9. e4 {[%emt 0:00:31]} dxe4 {[%emt 0:00:51] The position is equal.} 10. Nxe4 {[%emt 0:00:04]} Nxe4 {[%emt 0:01:04]} 11. Bxe4 {[%emt 0:00:05]} Nf6 {[%emt 0:01:09]} 12. Bc2 {[%emt 0:00:07]} c5 {[%emt 0:01:28]} 13. Qe2 {[%emt 0:00:13]} Qe7 {[%emt 0:01:50]} 14. O-O-O {[%emt 0:00:46]} O-O-O {[%emt 0:01:59]} 15. Kb1 {[%emt 0:00:43]} cxd4 {[%emt 0:09:47]} 16. Nxd4 {[%emt 0:05:30]} a6 {[%emt 0:01:26][%cal Oh8e8] Wards off Nb5} 17. Nf3 {[%emt 0:19:37]} Rhg8 {[%emt 0:20:50]} 18. Rhg1 {[%emt 0:05:59]} g5 {[%emt 0:05:09]} (18... Bc5 $14 {might be stronger.}) 19. Ne5 $16 {[%emt 0:10:07][%cal Od1d6]} h6 {[%emt 0:02:39]} 20. f3 {[%emt 0:12:46][%cal Od1d6] White is more active.} Bc7 {[%emt 0:08:56]} 21. Qe3 {[%emt 0:04:46]} Nd7 {[%emt 0:08:41]} 22. Nxd7 {[%emt 0:04:24]} Rxd7 {[%emt 0:00:05]} 23. Rxd7 {[%emt 0:00:35]} Qxd7 {[%emt 0:00:05]} 24. Rd1 {[%emt 0:04:09]} Qe7 {[%emt 0:00:33]} 25. Be5 {[%emt 0:15:57] Weighted Error Value: White=0.08 (flawless) /Black=0.08 (flawless) .  Mistake:       	---       	Black=1      Inaccurate:     	White=2     	Black=1      OK:         	White=7     	Black=7} 1/2-1/2

[Event "3rd President Cup-A 2024"]
[Site "Tashkent"]
[Date "2024.11.27"]
[Round "7.10"]
[White "Orozbaev, Eldiyar"]
[Black "Atabayev, Saparmyrat"]
[Result "0-1"]
[ECO "C77"]
[WhiteElo "2421"]
[BlackElo "2520"]
[Annotator "TA"]
[PlyCount "72"]
[EventDate "2024.11.22"]
[EventType "swiss"]
[EventCountry "UZB"]
[SourceTitle "playchess.com"]
[Source "ChessBase"]
[SourceQuality "1"]
[TimeControl "5400+30"]

{[%evp 14,72,8,0,-8,-9,24,-16,8,10,8,0,0,0,6,-23,11,-56,-46,-64,-53,-41,-34,-73,-75,-64,-2,-44,-56,-85,-12,-13,0,-19,40,-84,-29,-84,-64,-193,-207,-203,-136,-207,-205,-192,-205,-270,-293,-575,-398,-380,-383,-580,-577,-578,-583,-875,-728,-858,-894]} 1. e4 {[%emt 0:00:02]} e5 {[%emt 0:00:05]} 2. Nf3 {[%emt 0:00:05]} Nc6 {[%emt 0:00:08]} 3. Bb5 {[%emt 0:00:07]} a6 {[%emt 0:00:11]} 4. Ba4 {[%emt 0:00:04]} Nf6 {[%emt 0:04:09]} 5. Nc3 {[%emt 0:01:27]} b5 {[%emt 0:03:09]} 6. Bb3 {[%emt 0:00:05]} Be7 {[%emt 0:00:23]} 7. d3 {[%emt 0:05:48]} d6 {[%emt 0:01:45]} 8. a4 {[%emt 0:02:03]} b4 {[%emt 0:01:40]} 9. Nd5 {[%emt 0:00:05]} Rb8 {[%emt 0:04:56]} 10. c3 {[%emt 0:02:52]} bxc3 {[%emt 0:05:46] The position is equal.} 11. bxc3 {[%emt 0:00:05]} Na5 {[%emt 0:01:35]} 12. Ba2 {[%emt 0:00:37]} Nxd5 {[%emt 0:01:06]} 13. Bxd5 {[%emt 0:02:38]} O-O {[%emt 0:04:20]} 14. d4 {[%emt 0:01:39]} Bg4 {[%emt 0:03:36]} 15. Be3 {[%emt 0:13:09]} (15. O-O $11) 15... exd4 $15 {[%emt 0:01:27]} 16. cxd4 {[%emt 0:00:11]} c6 {[%emt 0:00:31]} 17. Ba2 {[%emt 0:00:05]} d5 {[%emt 0:01:19]} 18. Qd3 {[%emt 0:00:04]} Bb4+ {[%emt 0:08:14]} 19. Kf1 {[%emt 0:00:21]} g6 {[%emt 0:12:25]} (19... dxe4 $15 20. Qxe4 Qc8) 20. Ne5 {[%emt 0:05:42]} Be6 $36 {[%emt 0:00:31][%mdl 2048] Strongly threatening ...dxe4. Black has the initiative.} 21. Qc2 {[%emt 0:12:04] [#]} c5 {[%emt 0:07:56]} 22. dxc5 $11 {[%emt 0:07:08]} d4 {[%emt 0:00:24]} 23. Rd1 $1 {[%emt 0:10:58]} Bc3 {[%emt 0:13:35]} (23... Bxa2 $11 24. Qxa2 Qe7 (24... Bxc5 25. Bh6 $14) 25. Bxd4 Rfd8) 24. Bc1 {[%emt 0:10:04]} (24. Bxe6 $14 fxe6 25. Bc1) 24... Qe7 $17 {[%emt 0:04:00]} 25. Bxe6 {[%emt 0:05:06]} (25. Nd3 $1 $11 {remains equal.}) 25... Qxe6 {[%emt 0:00:21]} (25... fxe6 26. h4 $16) 26. Nd7 {[%emt 0:01:54] This move loses the game for White.} Qxd7 $19 {[%emt 0:04:52]} 27. Qxc3 {[%emt 0:00:04]} Nb3 {[%emt 0:02:57]} 28. Qc4 {[%emt 0:02:53]} (28. Qf3 $17 Nxc5 29. Bh6) 28... Rfc8 {[%emt 0:00:22][%mdl 1024] Black has strong compensation.} 29. Ba3 {[%emt 0:00:11][%cal Oh2h4]} Na5 {[%emt 0:00:34]} 30. Qc2 {[%emt 0:02:16]} (30. Qxd4 $2 {perishes.} Qxd4 31. Rxd4 Rb1+ 32. Ke2 Rxh1 $19) 30... Rb3 {[%emt 0:00:09]} 31. Bb2 $2 {[%emt 0:00:21]} (31. Bc1) 31... d3 {[%emt 0:00:07]} 32. Qc1 {[%emt 0:00:01] White is weak on the light squares} Qxa4 {[%emt 0:00:28][%cal Ob3b2] [#] ...Rxb2! is the strong threat.} 33. Ba1 {[%emt 0:01:45]} (33. Bf6 $142 Rc6 (33... Qxe4 $2 34. h4 $19) 34. Ba1) 33... Ra3 {[%emt 0:02:30][%cal Oc8c5] White must now prevent ...Rxc5! Black is clearly winning.} 34. Qb1 {[%emt 0:01:45]} Qc2 {[%emt 0:01:33]} (34... Rxc5 35. Qb8+) 35. g3 {[%emt 0:01:32]} Nb3 {[%emt 0:03:56]} (35... Rxc5 $2 36. Kg2 $17) ({Weaker is} 35... Qxc5 36. Qb2 Rxa1 37. Qxa1 $15) 36. Kg2 {[%emt 0:03:48]} Rxa1 {[%emt 0:00:40] Weighted Error Value: White=0.74/Black=0.26 (precise) .  Mistake:       	White=7     	Black=3      Inaccurate:     	White=7     	Black=4      OK:         	White=6     	Black=10     Best:        	White=3     	Black=5      Strong:       	White=1     	---} (36... Nxa1 37. Qb7 Qxc5 (37... Rxc5 38. Rc1 $11) 38. Rxa1 Rxa1 39. Rxa1 $15) 0-1

[Event "3rd President Cup-A 2024"]
[Site "Tashkent"]
[Date "2024.11.27"]
[Round "7.11"]
[White "Nazari, Arad"]
[Black "Saydaliev, Saidakbar"]
[Result "0-1"]
[ECO "B98"]
[WhiteElo "2401"]
[BlackElo "2473"]
[Annotator "TA"]
[PlyCount "119"]
[EventDate "2024.11.22"]
[EventType "swiss"]
[EventCountry "UZB"]
[SourceTitle "playchess.com"]
[Source "ChessBase"]
[SourceQuality "1"]
[TimeControl "5400+30"]

{[%evp 20,119,27,-55,-52,-48,-56,-126,-122,-104,-89,-97,-68,-116,-105,-109,-95,-94,-50,-117,-85,-78,-80,-92,-89,-90,-82,-81,-85,-102,-110,-125,-118,-150,-147,-152,-154,-163,-161,-156,-158,-192,-211,-174,-178,-183,-193,-203,-200,-218,-236,-269,-273,-257,-251,-235,-233,-407,-417,-444,-442,-489,-503,-531,-546,-523,-535,-513,-533,-544,-544,-687,-664,-791,-789,-844,-828,-1506,-1472,-1389,-1393,-1650,-1614,-2553,-2458,-2223,-1762,-1785,-1759,-2290,-2106,-4133,-2076,-29977,-29978,-29979,-29980,-29986,-29987,-29989,-29986,-29993]} 1. e4 {[%emt 0:03:09]} c5 {[%emt 0:02:06]} 2. Nf3 {[%emt 0:00:12]} d6 {[%emt 0:00:42]} 3. d4 {[%emt 0:00:05]} cxd4 {[%emt 0:00:23]} 4. Nxd4 {[%emt 0:00:10]} Nf6 {[%emt 0:00:14]} 5. Nc3 {[%emt 0:00:07]} a6 {[%emt 0:00:16]} 6. Bg5 {[%emt 0:00:06]} e6 {[%emt 0:00:49]} 7. f4 {[%emt 0:00:09]} Be7 {[%emt 0:00:59]} 8. Qf3 {[%emt 0:01:27]} h6 {[%emt 0:00:42]} 9. Bh4 {[%emt 0:03:47]} Nbd7 {[%emt 0:00:40]} 10. O-O-O {[%emt 0:01:35]} Qc7 {[%emt 0:01:00]} 11. Bf2 {[%emt 0:12:14]} (11. Be2 $11) 11... b5 $15 {[%emt 0:03:59]} 12. a3 $1 {[%emt 0:02:01]} Bb7 {[%emt 0:01:51]} 13. f5 {[%emt 0:05:42]} (13. Kb1 $15) 13... e5 $17 {[%emt 0:02:35] Black is better.} 14. Nb3 {[%emt 0:00:15]} Rc8 {[%emt 0:11:45][%cal Of6e4] Strongly threatening ...Nxe4!} 15. Bd3 {[%emt 0:18:03]} Qb8 {[%emt 0:19:47][%cal Oc8c3]} 16. Nd5 {[%emt 0:08:40]} (16. Be1 $15) 16... Nxd5 $1 {[%emt 0:07:30]} 17. exd5 {[%emt 0:00:09]} Nf6 {[%emt 0:00:09]} 18. Be4 {[%emt 0:00:35]} O-O {[%emt 0:05:00] ...Nxe4 is the strong threat.} 19. Na5 {[%emt 0:03:21]} ({White should try} 19. Bh4 $15) 19... Ba8 {[%emt 0:00:57]} (19... Qc7 {keeps more tension.} 20. Nxb7 b4 21. Nc5 bxa3 22. bxa3 Qa5) 20. Be1 {[%emt 0:03:41] Prevents b4} Bd8 {[%emt 0:08:23]} 21. Nc6 {[%emt 0:04:58]} Bxc6 {[%emt 0:01:50]} 22. dxc6 {[%emt 0:00:09]} Be7 {[%emt 0:04:12]} 23. Ba5 {[%emt 0:03:45]} Qa8 {[%emt 0:00:34]} 24. Bd5 {[%emt 0:02:02]} Nxd5 {[%emt 0:00:36]} 25. Rxd5 {[%emt 0:00:18]} Rxc6 {[%emt 0:02:25]} 26. Rhd1 {[%emt 0:01:24]} Rc4 {[%emt 0:01:36]} 27. Qe2 {[%emt 0:10:39]} Rfc8 {[%emt 0:01:30]} 28. Bc3 {[%emt 0:01:32]} Rf4 {[%emt 0:02:26]} 29. g4 {[%emt 0:00:10]} Qa7 {[%emt 0:00:24]} 30. Be1 {[%emt 0:03:13] [#] Inhibits Rf2.} Rcc4 $1 {[%emt 0:03:31]} 31. h3 {[%emt 0:01:14]} Rce4 {[%emt 0:01:21]} 32. Qg2 {[%emt 0:01:37] [#]} Qe3+ $1 {[%emt 0:01:21]} 33. Kb1 {[%emt 0:00:51]} Qf3 {[%emt 0:03:55]} 34. Qxf3 {[%emt 0:00:06]} Rxf3 {[%emt 0:00:01]} 35. Bb4 {[%emt 0:00:01]} Rxh3 {[%emt 0:00:47]} 36. Bxd6 {[%emt 0:00:05]} Bf6 {[%emt 0:00:53][%cal Oh3g3]} 37. Bc7 {[%emt 0:02:08]} Rg3 {[%emt 0:04:00]} 38. Bd8 $2 {[%emt 0:00:40]} (38. Rd6 {was called for.}) 38... Rexg4 $19 {[%emt 0:01:25]} ({Resist} 38... Rgxg4 39. Bxf6 gxf6 40. Rd8+ Kg7 41. Ra8) 39. Bxf6 {[%emt 0:00:27]} gxf6 {[%emt 0:00:02][%mdl 4096] Endgame. KRR-KRR} 40. Rd8+ {[%emt 0:00:26]} Kg7 {[%emt 0:00:08]} 41. R1d6 {[%emt 0:00:25]} h5 {[%emt 0:03:34]} 42. Rxa6 {[%emt 0:00:38]} h4 {[%emt 0:00:35]} 43. Raa8 {[%emt 0:00:19] White threatens Rh8 and mate.} Kh6 {[%emt 0:00:03]} 44. Rh8+ {[%emt 0:00:53]} Kg5 {[%emt 0:00:01]} 45. b3 {[%emt 0:00:54]} e4 {[%emt 0:00:36][%cal Oe4e3]} 46. Rae8 {[%emt 0:01:07]} e3 {[%emt 0:00:29]} 47. Kb2 {[%emt 0:00:06]} Kxf5 {[%emt 0:01:53]} 48. Kc3 {[%emt 0:00:26]} Re4 {[%emt 0:02:06] ( -> ...e2+)} 49. Rxe4 {[%emt 0:01:52]} Kxe4 {[%emt 0:00:02]} 50. Rxh4+ {[%emt 0:00:10] KR-KR} Kf3 {[%emt 0:00:07]} 51. Kd3 {[%emt 0:00:53]} f5 {[%emt 0:00:13]} 52. Rh1 {[%emt 0:00:45]} f4 {[%emt 0:00:25] ...e2 would now be deadly.} 53. Rf1+ {[%emt 0:00:23]} Kg4 {[%emt 0:00:06]} 54. a4 {[%emt 0:00:08]} bxa4 {[%emt 0:00:21]} 55. bxa4 {[%emt 0:00:02]} Rg2 {[%emt 0:00:13]} 56. a5 {[%emt 0:00:13]} Rd2+ {[%emt 0:00:55] Black mates.} 57. Kc3 {[%emt 0:00:01]} Rd6 {[%emt 0:00:06]} 58. Ra1 {[%emt 0:00:20]} e2 {[%emt 0:00:19]} 59. a6 {[%emt 0:00:04] [#]} Rxa6 $3 {[%emt 0:00:05][%mdl 512]} 60. Kd4 {[%emt 0:09:38] Weighted Error Value: White=0.75/Black=0.12 (very precise) .  Mistake:       	White=4     	---        Inaccurate:     	---       	Black=1      OK:         	White=12    	Black=19     Best:        	White=1     	Black=2      Strong:       	White=1     	Black=2} (60. Rxa6 e1=Q+) 0-1